{"text_format":"2","workbook":"xlsx","n_sheets":2,"sheets":["rinnovi","Foglio1"],"not_rendered":{"charts":0,"images":0,"macros":0,"external_links":0,"defined_names":2,"comments":0,"pivot_tables":0},"unopened":[],"bounds":{"document_bytes":16777216,"sheet_cells":100000,"run_cost":"one","rows_first":2000,"rows_last":500,"rows_between":2000,"halvings":0,"cell_chars":16384,"cell_head_chars":4096},"cells_cut":0,"cells_raw":0,"read":"whole","date_system":"1900"}

{"sheet":"rinnovi","index":0,"n_rows":130,"n_cols":3,"rows_kept":130,"cut":false,"hidden":false,"merged":[[97,1,103,1]]}
["COMUNE DI SESTO FIORENTINO",null,"Allegato A"]
["Servizio Economato Provveditorato"]
[]
["Riepilogo spesa abbonamenti pubblicazioni 2015"]
[]
["Servizi Istituzionali  Cap. 5110","Importo € ",{"$f":"SUM(B7:B12)","v":1027.77}]
["Ilsole24ore - cartaceo",500]
["Messagenet F@x in-Messagenet Srl",61]
["PAWEB - Editrice CEL (postazione ulteriore-segreteria.sindaco@comune.sesto-fiorentino.fi.it)",64.8]
["REPUBBLICA ON LINE - 6 MESI",99.99]
["LA NAZIONE ON LINE",99.99]
["CORRIERE DELLA SERA ON LINE -",201.99]
[]
["Dirigente Settore Finanziario e Organizzativo  Cap. 7110",null,{"$f":"SUM(B15:B24)","v":1322.19}]
["Guida Enti Locali il sole 24 ore-RIVISTE24-on line",146.88999999999999]
[]
["Servizi Finanziari Cap. 7110"]
["LA FINANZA LOCALE (COD.CLIENTE 150044) \nEd. MAGGIOLI PERIODICI",243.3]
["Il Sole 24 Ore cod. 438879",245]
["PAWEB - Editrice CEL (postazione ulteriore)",64.8]
["Vademecum 2015 on line Cel commerciale -",256.2]
[]
["Servizio Economato Cap. 7110 "]
["Appalti&Contratti - Maggioli (abb.sito internet)",366]
[]
["Servizio Tributi  Cap. 8110",null,{"$f":"SUM(B27)","v":64.8}]
["PAWEB - Editrice CEL (postazione ulteriore)",64.8]
[]
["Risorse Professionali Cap. 6110",null,{"$f":"SUM(B30:B33)","v":642.99}]
["Guida P.I. Il Sole 24 ore-RIVISTE24-on line",146.88999999999999]
["PAWEB - Editrice CEL (postazione ulteriore)",64.8]
["RU - Risorse Umane (COD.CLIENTE 150044) \nEd. MAGGIOLI PERIODICI",231.3]
["Personale News - Publika-riv.quindicinale",200]
[]
["Segretario Generale Cap.5111",null,{"$f":"SUM(B36:B37)","v":551.6}]
["PAWEB - Editrice CEL - (postazione principale)",486.8]
["PAWEB - Editrice CEL - (postazione ulteriore)",64.8]
[]
["Affari Generali - Ufficio Gare -Cap. 12110",null,{"$f":"SUM(B40)","v":122}]
["www.appaltiecontratti.it-maggioli (postazione ulteriori)",122]
[]
["Servizio Legale Cap. 12110/1 ",null,{"$f":"SUM(B43:B49)","v":1701.19}]
["Foro Italiano - Zanichelli Editore",355]
["Gius Agenda Legale-Wolters Kluwer Italia- N.2 COPIE",110]
["Agenda Legale-Edit.Emmeelle Il Momento Leg.vo-2 vol. ",48.5]
["Lexitalia.it  Casa Ed. Giuriconsult Srl-tipo premium",488]
["Lexitalia.it  Casa Ed. Giuriconsult Srl-tipo premium - UTILIZZATA ANCHE DAL SEGRETARIO",488]
["PAWEB - Editrice CEL (postazione ulteriore)",64.8]
["RIVISTE24 Diritto il sole 24 ore-on line",146.88999999999999]
[]
["Servizio Patrimonio Cap. 9110",null,{"$f":"SUM(B52:B53)","v":859.89}]
["Esproprionline EOL Tipologia-payfull - Exeo Srl",713]
["Consulente Immobiliare-Il sole 24 ore-RIVISTE24-on line ",146.88999999999999]
[]
["Attività Economiche Cap.lo 44110",null,{"$f":"SUM(B56:B57)","v":399.6}]
["Commercio e attività produttive-Maggioli  (riv.cartacea)",168.3]
["Disciplina commercio e servizi con newsl.-Maggioli ",231.3]
[]
["Assetto Territorio  Cap. 30110",null,{"$f":"SUM(B60:B61)","v":211.7}]
["Edilizia e Territorio Il Sole 24 ore-RIVISTE24-on line",146.9]
["PAWEB - Editrice CEL (postazione ulteriore)",64.8]
[]
["Lavori Pubblici  Cap. 10101/2",null,{"$f":"SUM(B64:B69)","v":889.87999999999988}]
["Guida Enti Locali-il sole 24 ore-RIVISTE24-on line",146.88999999999999]
["Bollettino Ingegneri - Ad Agency Gl Sas",{"$f":"175+1.3","v":176.3}]
["Edilizia e Territorio-Il Sole 24 ore-RIVISTE24-on line",146.88999999999999]
["I servizi funerari - Editore Euroact Srl",125]
["www.euroact.net-Euroact Srl -abb.internet - normale",230]
["PAWEB - Editrice CEL (postazione ulteriore)",64.8]
[]
["Polizia Municipale  Cap. 13100/2",null,{"$f":"SUM(B72:B79)","v":4726.28}]
["Guida Enti Locali-Il sole 24 ore-RIVISTE24-nuovo abb.on line",146.9]
["Il Codice della Strada-Ediz.Egaf-Comando P.M.-sinistri",123]
["Prontuario delle violazioni alla circolazione stradale-formula abb.-n.51 copie-Egaf - ",1203.5999999999999]
["Studi NET - Open Software Srl (n.1+1 Gratuito)",390.4]
["Ufficiocommercio.it-banca dati on-line-Maggioli",402.6]
["vigilaresullastrada.it - Maggioli",366]
["ancitel-servizio consultazione veicoli rubati",631]
["Servizi Informativi Internet Anci (arriva fatt.da pag.Ancitel)",1462.78]
[]
["Servizio Mobilità Cap.27101/2",null,{"$f":"SUM(B82)","v":146.9}]
["Edilizia e Territorio-Il sole 24 ore-RIVISTE24-.on line",146.9]
[]
["Servizi Demografici  Cap. 11110",null,{"$f":"SUM(B85:B86)","v":276.8}]
["Lo Stato Civile italiano - Sepel Sas",212]
["PAWEB - Editrice CEL (postazione ulteriore)",64.8]
[]
["Centro Il Melograno Cap. 37110",null,{"$f":"SUM(B89:B89)","v":146.9}]
["Guida Enti Locali-Il Sole 24 Ore-RIVISTE24-on line",146.9]
[]
["Servizi educativi culturali sportivi 19110",null,{"$f":"SUM(B92:B92)","v":64.8}]
["PAWEB - Editrice CEL (postazione ulteriore)",64.8]
["ASILI NIDO 36110",null,{"$f":"SUM(B94:B95)","v":216.8}]
["Rivista Bambini (N.4 COPIE )-Spaggiari Edit.tel.0521949011",216.8]
[]
["Biblioteca - quotidiani 20110",null,{"$f":"SUM(B97:B104)","v":3587.11}]
["PA WEB - Editr.Cel -(Postazione ulteriore)",64.8]
["LA NAZIONE",{"$f":"500*7+22.31","v":3522.31}]
["LA REPUBBLICA"]
["IL CORRIERE DELLA SERA"]
["LA GAZZETTA DELLO SPORT"]
["IL FOGLIO"]
["IL MANIFESTO"]
["METROPOLI"]
[]
["Biblioteca - riviste 20110",null,{"$f":"SUM(B107:B128)","v":1140.7999999999997}]
["ACCADEMIA DELLA CRUSCA",15]
["ARCHEOLOGIA VIVA",{"$f":"26.4+1.3","v":27.7}]
["ART & DOSSIER",49.3]
["BELL'EUROPA (Cairo Editore)",34]
["BELL'ITALIA (Cairo Editore)",36]
["BIBLIOTECHE OGGI",105]
["ESPRESSO ",70.3]
["FIRENZE SPETTACOLO",23.3]
["FUORI BINARIO",30]
["IL MUCCHIO SELVAGGIO",62]
["IL VERNACOLIERE",27]
["INTERNAZIONALE",86]
["LA NUOVA ECOLOGIA",28.3]
["LIBER RIVISTA",45.3]
["MICROMEGA (bimestrale)",50.3]
["MUSICA JAZZ",70]
["PANORAMA",45]
["PASSATO E PRESENTE (Ed.franco angeli)",59]
["PATRIA INDIPENDENTE",26.3]
["QUADERNI STORICI",108]
["RICERCHE STORICHE",50]
["SOCIETA' E STORIA (Ed.franco angeli)",93]
[]
[null,null,{"$f":"SUM(C1:C128)","v":18099.999999999996}]

{"sheet":"Foglio1","index":1,"n_rows":0,"n_cols":0,"rows_kept":0,"cut":false,"hidden":false,"merged":[]}